fUST/lending_fUST_20240822
["ID","MTS","AMOUNT","RATE_DAILY","PERIOD"]
[335488133,1724266268294,-1984.42,0.00034849,21]
[335488134,1724266268304,-2910.61,0.00034849,21]
[335488135,1724266268314,-1984.46,0.00034849,21]
[335488136,1724266268325,-2910.61,0.00034849,21]
[335488137,1724266268335,-2910.61,0.00034849,21]
[335488138,1724266268346,-2910.61,0.00034849,21]
[335488139,1724266268356,-500.0,0.00034849,21]
[335488140,1724266268367,-2910.73,0.00034849,21]
[335488141,1724266268379,-500.0,0.00034849,21]
[335488142,1724266268389,-500.0,0.00034849,21]
[335488143,1724266268398,-500.0,0.00034849,21]
[335488144,1724266268409,-500.0,0.00034849,21]
[335488145,1724266268419,-500.0,0.00034849,21]
[335488146,1724266268427,-500.0,0.00034849,21]
[335488147,1724266268436,-315.49,0.00034849,21]
[335488148,1724266268446,-500.0,0.00034849,21]
[335488149,1724266268455,-500.0,0.00034849,21]
[335488150,1724266268465,-500.0,0.00034849,21]
[335488151,1724266268476,-500.0,0.00034849,21]
[335488152,1724266268485,-467.926186,0.00034849,21]
[335488153,1724266268494,-500.0,0.00034849,21]
[335488154,1724266268503,-500.0,0.00034849,21]
[335488155,1724266268512,-500.0,0.00034849,21]
[335488156,1724266268522,-500.0,0.00034849,21]
[335488157,1724266268531,-500.0,0.00034849,21]
[335488158,1724266268540,-500.0,0.00034849,21]
[335488159,1724266268550,-500.0,0.00034849,21]
[335488160,1724266268559,-500.0,0.00034849,21]
[335488161,1724266268568,-500.0,0.00034849,21]
[335488162,1724266268577,-465.28,0.00034849,21]
[335488163,1724266268587,-3466.22,0.00034849,21]
[335488164,1724266268596,-3466.22,0.00034849,21]
[335488165,1724266268605,-3466.22,0.00034849,21]
[335488166,1724266268614,-1320.42299289,0.00034849,21]
[335488177,1724266699752,811.47145884,9.899e-05,2]
[335488179,1724266878043,6342.4066491,9.524e-05,2]
[335488181,1724266895557,933.80144992,9.899e-05,2]
[335488183,1724266920269,1744.38845872,9.899e-05,2]
[335488184,1724266929816,192.24106707,9.899e-05,2]
[335488185,1724266964274,421.44575686,9.899e-05,2]
[335488186,1724266978085,174.87204268,9.899e-05,2]
[335488188,1724266998678,460.33085442,9.899e-05,2]
[335488189,1724267002968,242.6833941,9.899e-05,2]
[335488190,1724267004364,196.84867548,9.899e-05,2]
[335488191,1724267006897,520.31494712,9.899e-05,2]
[335488192,1724267020469,320.27103328,9.899e-05,2]
[335488193,1724267031407,333.35977456,9.899e-05,2]
[335488194,1724267043778,190.03763269,9.899e-05,2]
[335488195,1724267047296,405.88698024,9.899e-05,3]
[335488197,1724267049546,490.16488623,9.899e-05,2]
[335488198,1724267062114,688.676981,9.899e-05,2]
[335488204,1724267318158,204.17009862,9.9e-05,2]
[335488282,1724267438074,-413.74889628,0.0001,2]
[335488284,1724267438084,-300.0,0.0001008,2]
[335488286,1724267438094,-18500.2823146,0.00010081,2]
[335488287,1724267438106,-160.47619997,0.00010739,2]
[335488288,1724267438115,-250.0000023,0.00010884,2]
[335488289,1724267438125,-174.76125691,0.00010958,2]
[335488290,1724267438136,-168.65,0.00010959,2]
[335488291,1724267438148,-196.52770557,0.00011409,2]
[335488292,1724267438159,-24900.0,0.0001153,2]
[335488293,1724267438169,-3746.87273926,0.000129,2]
[335488294,1724267438180,-404.47284307,0.00012971,2]
[335488295,1724267438190,-154.79158035,0.00012985,2]
[335488296,1724267438199,-862.64603536,0.00013,2]
[335488297,1724267438209,-301.59897552,0.00013025,2]
[335488298,1724267438222,-154.72922386,0.00013333,2]
[335488299,1724267438233,-158.13895029,0.00013697,2]
[335488300,1724267438249,-158.13895029,0.00013697,2]
[335488301,1724267438260,-2728.1621043,0.00013699,2]
[335488302,1724267438272,-1308.041752,0.00013699,2]
[335488303,1724267438284,-3000.0,0.00013699,2]
[335488304,1724267438295,-4424.1224189,0.00013699,2]
[335488305,1724267438307,-194.85160042,0.00013699,2]
[335488306,1724267438318,-154.72922386,0.00014,2]
[335488307,1724267438328,-338.205484,0.00014247,2]
[335488308,1724267438337,-3746.87273925,0.00014861,2]
[335488309,1724267438346,-2640.65836955,0.00015,2]
[335488310,1724267438356,-154.76012181,0.00015,2]
[335488311,1724267438365,-782.718708,0.00015,2]
[335488312,1724267438374,-163.21743995,0.00017861,2]
[335488313,1724267438383,-500.0,0.00017861,2]
[335488314,1724267438392,-500.0,0.00017861,2]
[335488315,1724267438402,-500.0,0.00017861,2]
[335488316,1724267438411,-500.0,0.00017861,2]
[335488317,1724267438420,-500.0,0.00017861,2]
[335488318,1724267438432,-500.0,0.00017861,2]
[335488319,1724267438441,-500.0,0.00017861,2]
[335488320,1724267438450,-500.0,0.00017861,2]
[335488321,1724267438460,-500.0,0.00017861,2]
[335488322,1724267438469,-500.0,0.00017861,2]
[335488323,1724267438478,-500.0,0.00017861,2]
[335488324,1724267438488,-500.0,0.00017861,2]
[335488325,1724267438497,-500.0,0.00017861,2]
[335488326,1724267438506,-500.0,0.00017861,2]
[335488327,1724267438516,-500.0,0.00017861,2]
[335488328,1724267438525,-500.0,0.00017861,2]
[335488329,1724267438534,-500.0,0.00017861,2]
[335488330,1724267438543,-500.0,0.00017861,2]
[335488331,1724267438552,-500.0,0.00017861,2]
[335488332,1724267438562,-500.0,0.00017861,2]
[335488333,1724267438571,-500.0,0.00017861,2]
[335488334,1724267438580,-500.0,0.00017861,2]
[335488335,1724267438590,-500.0,0.00017861,2]
[335488336,1724267438600,-500.0,0.00017861,2]
[335488337,1724267438609,-500.0,0.00017861,2]
[335488338,1724267438619,-500.0,0.00017861,2]
[335488339,1724267438628,-500.0,0.00017861,2]
[335488340,1724267438638,-353.47676791,0.00017861,2]
[335488341,1724267438647,-500.0,0.00017861,2]
[335488342,1724267438657,-500.0,0.00017861,2]
[335488343,1724267438666,-500.0,0.00017861,2]
[335488344,1724267438678,-500.0,0.00017861,2]
[335488345,1724267438688,-500.0,0.00017861,2]
[335488346,1724267438697,-500.0,0.00017861,2]
[335488347,1724267438706,-500.0,0.00017861,2]
[335488348,1724267438717,-500.0,0.00017861,2]
[335488349,1724267438726,-500.0,0.00017861,2]
[335488350,1724267438736,-500.0,0.00017861,2]
[335488351,1724267438745,-500.0,0.00017861,2]
[335488352,1724267438755,-500.0,0.00017861,2]
[335488353,1724267438765,-500.0,0.00017861,2]
[335488354,1724267438774,-500.0,0.00017861,2]
[335488355,1724267438783,-500.0,0.00017861,2]
[335488356,1724267438793,-500.0,0.00017861,2]
[335488357,1724267438802,-500.0,0.00017861,2]
[335488358,1724267438812,-500.0,0.00017861,2]
[335488359,1724267438821,-500.0,0.00017861,2]
[335488360,1724267438830,-500.0,0.00017861,2]
[335488361,1724267438840,-500.0,0.00017861,2]
[335488362,1724267438849,-500.0,0.00017861,2]
[335488363,1724267438859,-500.0,0.00017861,2]
[335488364,1724267438869,-500.0,0.00017861,2]
[335488365,1724267438878,-500.0,0.00017861,2]
[335488366,1724267438888,-500.0,0.00017861,2]
[335488367,1724267438898,-500.0,0.00017861,2]
[335488368,1724267438908,-500.0,0.00017861,2]
[335488369,1724267438918,-500.0,0.00017861,2]
[335488370,1724267438939,-500.0,0.00017861,2]
[335488371,1724267438948,-500.0,0.00017861,2]
[335488372,1724267438958,-500.0,0.00017861,2]
[335488373,1724267438968,-500.0,0.00017861,2]
[335488374,1724267438978,-500.0,0.00017861,2]
[335488375,1724267438988,-500.0,0.00017861,2]
[335488376,1724267438997,-500.0,0.00017861,2]
[335488377,1724267439007,-500.0,0.00017861,2]
[335488378,1724267439016,-500.0,0.00017861,2]
[335488379,1724267439026,-635.3476768,0.00017861,2]
[335488380,1724267439037,-96923.6353868,0.00017862,2]
[335488381,1724267439048,-500.0,0.00017873,2]
[335488382,1724267439057,-10343.5134042,0.00017898,2]
[335488383,1724267439067,-3746.87273925,0.00018201,2]
[335488384,1724267439077,-332.35258662,0.00019178,2]
[335488385,1724267439087,-165.177485,0.00019178,2]
[335488386,1724267439097,-160.344481,0.00019178,2]
[335488387,1724267439106,-251.0,0.00019178,2]
[335488388,1724267439117,-154.71377951,0.00019452,2]
[335488389,1724267439127,-1308.041752,0.00020548,2]
[335488390,1724267439136,-338.205484,0.00020707,2]
[335488391,1724267439146,-3233.82,0.00021,2]
[335488392,1724267439425,-3746.87273925,0.00021541,2]
[335488393,1724267439436,-953.53947811,0.00024319,2]
[335488394,1724267439447,-882.99597685,0.00024448,2]
[335488395,1724267439459,-277.68803325,0.00024488,2]
[335488396,1724267439469,-218.01699193,0.0002469,2]
[335488397,1724267439478,-1111.18149522,0.0002469,2]
[335488398,1724267439490,-3746.87273925,0.0002488,2]
[335488399,1724267439502,-1907.84433138,0.00025,30]
[335488400,1724267439513,-429.68402001,0.00025869,2]
[335488401,1724267439523,-500.0,0.00025869,2]
[335488402,1724267439533,-533.86955664,0.00025869,2]
[335488403,1724267439543,-500.0,0.00025869,2]
[335488404,1724267439552,-533.86955664,0.00025869,2]
[335488405,1724267439562,-533.86955664,0.00025869,2]
[335488406,1724267439571,-533.86955664,0.00025869,2]
[335488407,1724267439581,-533.86955664,0.00025869,2]
[335488409,1724267439591,-324.57320243,0.00025869,2]
[335488410,1724267439603,-533.86955664,0.00025869,2]
[335488411,1724267439612,-533.86955664,0.00025869,2]
[335488412,1724267439622,-533.86955664,0.00025869,2]
[335488413,1724267439632,-533.86955664,0.00025869,2]
[335488414,1724267439642,-533.86955664,0.00025869,2]
[335488415,1724267439651,-533.86955664,0.00025869,2]
[335488416,1724267439661,-533.86955664,0.00025869,2]
[335488417,1724267439671,-533.86955664,0.00025869,2]
[335488418,1724267439681,-544.54694777,0.00025869,2]
[335488419,1724267439692,-544.54694777,0.00025869,2]
[335488420,1724267439702,-544.54694777,0.00025869,2]
[335488421,1724267439712,-544.54694777,0.00025869,2]
[335488422,1724267439722,-544.54694777,0.00025869,2]
[335488423,1724267439732,-544.54694777,0.00025869,2]
[335488424,1724267439743,-544.54694777,0.00025869,2]
[335488426,1724267439753,-544.54694777,0.00025869,2]
[335488427,1724267439763,-534.7148501,0.00025869,2]
[335488429,1724267439773,-534.7148501,0.00025869,2]
[335488431,1724267439784,-534.7148501,0.00025869,2]
[335488433,1724267439796,-534.7148501,0.00025869,2]
[335488435,1724267439806,-534.7148501,0.00025869,2]
[335488436,1724267439816,-534.7148501,0.00025869,2]
[335488437,1724267439826,-193847.270774,0.0002587,3]
[335488438,1724267439837,-140998.50241706,0.0002588,15]
[335488442,1724267440030,-665.00000032,0.0002588,15]
[335488445,1724267440247,-817.69256856,0.00012,2]
[335488446,1724267440257,-77161.0695237,0.0002588,15]
[335488447,1724267440267,-88888.0,0.0002588,3]
[335488448,1724267440276,-1460.94,0.000259,14]
[335488449,1724267440286,-323.49,0.000259,14]
[335488450,1724267440294,-163.57,0.000259,7]
[335488451,1724267440304,-5000.0,0.00026,2]
[335488452,1724267440313,-338.205484,0.00027167,2]
[335488453,1724267440322,-150.0,0.00027989,2]
[335488454,1724267440331,-3746.87273925,0.0002822,2]
[335488455,1724267440342,-96923.6353868,0.00028979,3]
[335488456,1724267440351,-150.0,0.00028989,2]
[335488457,1724267440361,-6005.83263874,0.00029,2]
[335488458,1724267440370,-151.0,0.00029618,2]
[335488459,1724267440379,-150.0,0.00029989,2]
[335488460,1724267440388,-178.72751622,0.0003,5]
[335488461,1724267440397,-3000.0,0.0003,14]
[335488462,1724267440406,-3001.0,0.0003,14]
[335488463,1724267440415,-97901.50180452,0.0003,2]
[335488464,1724267440426,-151.0,0.00030681,3]
[335488465,1724267440437,-150.0,0.00030989,2]
[335488466,1724267440447,-5000.0,0.00031,4]
[335488467,1724267440458,-521.0,0.00031478,2]
[335488468,1724267440469,-1415.0,0.00031478,2]
[335488469,1724267440479,-3746.87273925,0.0003156,2]
[335488470,1724267440494,-151.0,0.00031743,3]
[335488471,1724267440504,-325.848929,0.00031781,2]
[335488472,1724267440517,-150.0,0.00031989,2]
[335488473,1724267440526,-151.0,0.00032806,4]
[335488474,1724267440535,-150.0,0.00032989,2]
[335488475,1724267440544,-155.82579699,0.00033184,3]
[335488476,1724267440556,-338.205484,0.00033626,2]
[335488477,1724267440567,-1460.94,0.000337,14]
[335488478,1724267440577,-150.0,0.00033766,2]
[335488479,1724267440587,-150.0,0.00033799,2]
[335488480,1724267440597,-151.0,0.00033868,4]
[335488481,1724267440607,-323.49,0.000339,14]
[335488482,1724267440616,-163.57,0.000339,30]
[335488483,1724267440627,-160.344481,0.00034399,2]
[335488484,1724267440637,-2652.74334566,0.0003442,120]
[335488485,1724267440646,-420.51,0.00034478,2]
[335488486,1724267440656,-1415.0,0.00034478,2]
[335488487,1724267440666,-500.0,0.0003452,21]
[335488488,1724267440676,-500.0,0.0003452,21]
[335488489,1724267440687,-500.0,0.0003452,21]
[335488490,1724267440698,-500.0,0.0003452,21]
[335488491,1724267440708,-311.64126308,0.0003452,21]
[335488492,1724267440719,-500.0,0.0003452,21]
[335488493,1724267440730,-500.0,0.0003452,21]
[335488494,1724267440740,-500.0,0.0003452,21]
[335488495,1724267440751,-500.0,0.0003452,21]
[335488496,1724267440760,-500.0,0.0003452,21]
[335488497,1724267440771,-500.0,0.0003452,21]
[335488498,1724267440782,-500.0,0.0003452,21]
[335488499,1724267440793,-500.0,0.0003452,21]
[335488500,1724267440803,-500.0,0.0003452,21]
[335488501,1724267440813,-286.64299289,0.0003452,21]
[335488502,1724267440823,-500.0,0.0003452,21]
[335488503,1724267440833,-500.0,0.0003452,21]
[335488504,1724267440845,-500.0,0.0003452,21]
[335488505,1724267440856,-500.0,0.0003452,21]
[335488506,1724267440867,-500.0,0.0003452,21]
[335488507,1724267440877,-500.0,0.0003452,21]
[335488508,1724267440889,-500.0,0.0003452,21]
[335488509,1724267440900,-500.0,0.0003452,21]
[335488510,1724267440910,-500.0,0.0003452,21]
[335488511,1724267440922,-500.0,0.0003452,21]
[335488512,1724267440932,-500.0,0.0003452,21]
[335488513,1724267440942,-500.0,0.0003452,21]
[335488514,1724267440957,-500.0,0.0003452,21]
[335488515,1724267440969,-500.0,0.0003452,21]
[335488516,1724267440980,-500.0,0.0003452,21]
[335488517,1724267440991,-156.79,0.0003452,21]
[335488518,1724267441000,-500.0,0.0003452,21]
[335488519,1724267441010,-500.0,0.0003452,21]
[335488520,1724267441020,-500.0,0.0003452,21]
[335488521,1724267441030,-500.0,0.0003452,21]
[335488522,1724267441042,-500.0,0.0003452,21]
[335488523,1724267441054,-500.0,0.0003452,21]
[335488524,1724267441064,-500.0,0.0003452,21]
[335488525,1724267441077,-500.0,0.0003452,21]
[335488526,1724267441089,-500.0,0.0003452,21]
[335488527,1724267441099,-500.0,0.0003452,21]
[335488528,1724267441112,-500.0,0.0003452,21]
[335488529,1724267441122,-500.0,0.0003452,21]
[335488530,1724267441132,-500.0,0.0003452,21]
[335488531,1724267441142,-271.02353292,0.0003452,21]
[335488532,1724267441154,-500.0,0.0003452,21]
[335488533,1724267441166,-500.0,0.0003452,21]
[335488534,1724267441177,-500.0,0.0003452,21]
[335488535,1724267441187,-500.0,0.0003452,21]
[335488536,1724267441201,-500.0,0.0003452,21]
[335488537,1724267441211,-245.6,0.0003452,21]
[335488538,1724267441220,-500.0,0.0003452,21]
[335488539,1724267441230,-500.0,0.0003452,21]
[335488540,1724267441240,-500.0,0.0003452,21]
[335488541,1724267441251,-500.0,0.0003452,21]
[335488542,1724267441262,-500.0,0.0003452,21]
[335488543,1724267441274,-500.0,0.0003452,21]
[335488544,1724267441284,-500.0,0.0003452,21]
[335488545,1724267441294,-500.0,0.0003452,21]
[335488546,1724267441305,-500.0,0.0003452,21]
[335488547,1724267441315,-500.0,0.0003452,21]
[335488548,1724267441328,-500.0,0.0003452,21]
[335488549,1724267441340,-500.0,0.0003452,21]
[335488550,1724267441351,-500.0,0.0003452,21]
[335488551,1724267441362,-500.0,0.0003452,21]
[335488552,1724267441372,-500.0,0.0003452,21]
[335488553,1724267441384,-500.0,0.0003452,21]
[335488554,1724267441395,-500.0,0.0003452,21]
[335488555,1724267441406,-436.08,0.0003452,21]
[335488556,1724267441419,-500.0,0.0003452,21]
[335488557,1724267441430,-500.0,0.0003452,21]
[335488558,1724267441441,-402.62,0.0003452,21]
[335488559,1724267441451,-4451.63,0.0003452,21]
[335488560,1724267441462,-4451.63,0.0003452,21]
[335488561,1724267441473,-4451.63,0.0003452,21]
[335488562,1724267441483,-4451.63,0.0003452,21]
[335488563,1724267441494,-4451.63,0.0003452,21]
[335488564,1724267441504,-4451.63,0.0003452,21]
[335488565,1724267441515,-4451.63,0.0003452,21]
[335488566,1724267441525,-4451.63,0.0003452,21]
[335488567,1724267441535,-4451.63,0.0003452,21]
[335488568,1724267441544,-4451.63,0.0003452,21]
[335488569,1724267441553,-4451.63,0.0003452,21]
[335488570,1724267441562,-4451.63,0.0003452,21]
[335488571,1724267441572,-4451.63,0.0003452,21]
[335488572,1724267441582,-4451.63,0.0003452,21]
[335488573,1724267441592,-4451.63,0.0003452,21]
[335488574,1724267441602,-4451.63,0.0003452,21]
[335488575,1724267441612,-4451.63,0.0003452,21]
[335488576,1724267441623,-4451.63,0.0003452,21]
[335488577,1724267441643,-4451.63,0.0003452,21]
[335488578,1724267441654,-4451.63,0.0003452,21]
[335488579,1724267441665,-4451.63,0.0003452,21]
[335488580,1724267441677,-4451.63,0.0003452,21]
[335488581,1724267441686,-4451.63,0.0003452,21]
[335488582,1724267441698,-4451.65727974,0.0003452,21]
[335488583,1724267441707,-500.0,0.0003452,21]
[335488584,1724267441717,-380.42609696,0.0003452,21]
[335488585,1724267441728,-500.0,0.0003452,21]
[335488586,1724267441738,-500.0,0.0003452,21]
[335488587,1724267441748,-500.0,0.0003452,21]
[335488588,1724267441758,-593.87056198,0.0003452,21]
[335488589,1724267441767,-500.0,0.0003452,21]
[335488590,1724267441778,-500.0,0.0003452,21]
[335488591,1724267441788,-500.0,0.0003452,21]
[335488592,1724267441797,-500.0,0.0003452,21]
[335488593,1724267441807,-500.0,0.0003452,21]
[335488594,1724267441816,-500.0,0.0003452,21]
[335488595,1724267441826,-500.0,0.0003452,21]
[335488596,1724267441836,-500.0,0.0003452,21]
[335488597,1724267441846,-323.92,0.0003452,21]
[335488598,1724267441856,-500.0,0.0003452,21]
[335488599,1724267441865,-500.0,0.0003452,21]
[335488600,1724267441874,-500.0,0.0003452,21]
[335488601,1724267441883,-500.0,0.0003452,21]
[335488602,1724267441893,-297.76,0.0003452,21]
[335488603,1724267441903,-500.0,0.0003452,21]
[335488604,1724267441912,-500.0,0.0003452,21]
[335488605,1724267441922,-500.0,0.0003452,21]
[335488606,1724267441932,-500.0,0.0003452,21]
[335488607,1724267441943,-500.0,0.0003452,21]
[335488608,1724267441953,-500.0,0.0003452,21]
[335488609,1724267441963,-500.0,0.0003452,21]
[335488610,1724267441972,-465.28,0.0003452,21]
[335488611,1724267441983,-6008.93,0.0003452,21]
[335488612,1724267441998,-6008.93,0.0003452,21]
[335488613,1724267442009,-6008.93,0.0003452,21]
[335488614,1724267442018,-6008.93,0.0003452,21]
[335488615,1724267442031,-2184.00170834,0.0003452,21]
[335488616,1724267442055,-1118.58713351,0.0003452,21]
[335488617,1724267442070,-1748.57892849,0.0003452,21]
[335488652,1724267443051,-311.69803547,0.00031478,2]
[335488653,1724267443063,-7416.12424416,0.00031478,2]
[335488654,1724267443081,-2140.00003,0.00031478,2]
[335488655,1724267443095,-5431.17769037,0.00031478,2]
[335488656,1724267443106,-957.76222966,0.0003452,21]
[335488657,1724267443118,-6008.93,0.0003452,21]
[335488658,1724267443127,-6008.93,0.0003452,21]
[335488659,1724267443139,-6008.93,0.0003452,21]
[335488660,1724267443149,-6008.93,0.0003452,21]
[335488661,1724267443159,-6008.93,0.0003452,21]
[335488662,1724267443170,-6008.93,0.0003452,21]
[335488663,1724267443182,-6008.93,0.0003452,21]
[335488664,1724267443192,-6008.93,0.0003452,21]
[335488665,1724267443203,-6008.93,0.0003452,21]
[335488666,1724267443214,-6008.93,0.0003452,21]
[335488667,1724267443225,-539.56576142,0.0003452,21]
[335488668,1724267443267,-5469.36423858,0.0003452,21]
[335488669,1724267443276,-6008.93,0.0003452,21]
[335488670,1724267443286,-6008.93,0.0003452,21]
[335488671,1724267443295,-6008.93,0.0003452,21]
[335488672,1724267443306,-6008.93,0.0003452,21]
[335488674,1724267443316,-6008.93,0.0003452,21]
[335488677,1724267443327,-6008.93,0.0003452,21]
[335488679,1724267443339,-6008.93,0.0003452,21]
[335488681,1724267443349,-6008.93413487,0.0003452,21]
[335488683,1724267443360,-2787.91,0.0003452,21]
[335488685,1724267443371,-2787.91,0.0003452,21]
[335488686,1724267443382,-2787.91,0.0003452,21]
[335488687,1724267443392,-1819.05,0.0003452,21]
[335488688,1724267443403,-2787.91,0.0003452,21]
[335488689,1724267443414,-1819.05,0.0003452,21]
[335488690,1724267443426,-2787.91,0.0003452,21]
[335488691,1724267443439,-1819.05,0.0003452,21]
[335488692,1724267443450,-2787.91,0.0003452,21]
[335488693,1724267443461,-1819.05,0.0003452,21]
[335488694,1724267443471,-2787.91,0.0003452,21]
[335488695,1724267443481,-2787.91,0.0003452,21]
[335488696,1724267443492,-1819.05,0.0003452,21]
[335488697,1724267443502,-2787.91,0.0003452,21]
[335488698,1724267443512,-1819.05,0.0003452,21]
[335488699,1724267443522,-2787.91,0.0003452,21]
[335488700,1724267443531,-1819.05,0.0003452,21]
[335488701,1724267443541,-2787.91,0.0003452,21]
[335488702,1724267443551,-1819.05,0.0003452,21]
[335488703,1724267443561,-1239.78162655,0.0003452,21]
[335488794,1724268318475,160.38159743,9.899e-05,2]
[335488805,1724268554513,287.0,0.0001998,120]
[335488806,1724268554639,150.5,0.0001998,120]
[335488807,1724268554973,287.0,0.0001997,120]
[335488808,1724268555125,150.5,0.0001997,120]
[335488809,1724268555441,287.0,0.0001996,120]
[335488810,1724268555593,150.5,0.0001996,120]
[335488860,1724268632102,-300.0,9.999e-05,2]
[335488862,1724268632113,-300.0,9.999e-05,2]
[335488864,1724268632123,-413.74889628,0.0001,2]
[335488866,1724268632133,-4520.15253768,0.0001,2]
[335488870,1724268632145,-529.88200369,0.0001,2]
[335488873,1724268632155,-300.0,0.00010999,2]
[335488875,1724268632165,-357.0,0.00010999,2]
[335488877,1724268632185,-155.02947426,0.00011842,2]
[335488879,1724268632194,-192.04035813,0.000119,2]
[335488881,1724268632204,-164.814082,0.00012218,2]
[335488883,1724268632213,-164.814082,0.00012276,2]
[335488884,1724268632223,-396.30857781,0.000123,2]
[335488885,1724268632233,-164.814082,0.00012334,2]
[335488886,1724268632243,-164.814082,0.00012392,2]
[335488887,1724268632253,-49.25670337,0.0001245,2]
[335488924,1724268640482,-115.55737863,0.0001245,2]
[335488925,1724268640492,-2492.84262135,0.000125,2]
[335488926,1724268640505,-1393.7599875,0.000125,2]
[335488927,1724268640518,-147.35974709,0.000125,2]
[335488928,1724268640533,-164.814082,0.00012508,2]
[335488929,1724268640543,-164.814082,0.00012565,2]
[335488930,1724268640553,-164.814082,0.00012623,2]
[335488931,1724268640562,-164.814082,0.00012681,2]
[335488932,1724268640572,-164.814082,0.00012739,2]
[335488933,1724268640582,-164.814082,0.00012797,2]
[335488934,1724268640837,-164.814082,0.00012855,2]
[335488935,1724268640847,-3058.25452205,0.00012989,2]
[335488936,1724268640857,-301.59897552,0.00012999,2]
[335488937,1724268640866,-862.64603536,0.00013,2]
[335488938,1724268640876,-35.11147099,0.00013025,2]
[335488939,1724268640888,-119.6332003,0.00013025,2]
[335488940,1724268640898,-158.13895029,0.00013051,2]
[335488941,1724268640907,-180.73325647,0.00013477,2]
[335488942,1724268640917,-404.47284307,0.00013477,2]
[335488943,1724268640927,-362.44940971,0.00013496,2]
[335488944,1724268640936,-2166.67279368,0.00013596,2]
[335488945,1724268640946,-1017.4427608,0.0001365,2]
[335488946,1724268640959,-155.04559783,0.00013698,2]
[335488947,1724268640968,-1503.04135693,0.00013699,2]
[335488948,1724268640980,-1496.95864307,0.00013699,2]
[335488949,1724268640990,-194.85160042,0.00013699,2]
[335488950,1724268640999,-234.82398039,0.00014,2]
[335488951,1724268641009,-20720.08439048,0.00014,4]
[335488952,1724268641018,-468.35909245,0.00014147,2]
[335488953,1724268641028,-270.564387,0.00014247,2]
[335488954,1724268641038,-2640.65836955,0.00015,2]
[335488955,1724268641048,-782.718708,0.00015,2]
[335488956,1724268641057,-24900.0,0.00016466,2]
[335488957,1724268641067,-277.68803325,0.000165,2]
[335488958,1724268641076,-468.3590924,0.00017112,2]
[335488959,1724268641085,-1991.50485113,0.000176,2]
[335488960,1724268641095,-10343.5134042,0.00017898,2]
[335488961,1724268641104,-500.0,0.00018446,2]
[335488962,1724268641114,-263.70385977,0.00018446,2]
[335488963,1724268641124,-500.0,0.00018446,2]
[335488964,1724268641133,-500.0,0.00018446,2]
[335488965,1724268641143,-500.0,0.00018446,2]
[335488966,1724268641152,-500.0,0.00018446,2]
[335488967,1724268641162,-500.0,0.00018446,2]
[335488968,1724268641173,-500.0,0.00018446,2]
[335488969,1724268641184,-8031.08329623,0.00018447,2]
[335488983,1724268643783,-3093.28626151,0.00012985,2]
[335488984,1724268643792,-7927.87694398,0.00018447,2]
[335488985,1724268643802,-606.72067983,0.00019,2]
[335488986,1724268643811,-186.58276462,0.000191,2]
[335488987,1724268643821,-164.691147,0.00019178,2]
[335488988,1724268643831,-251.0,0.00019178,2]
[335488989,1724268643840,-165.177485,0.00019178,2]
[335488990,1724268643849,-154.72922386,0.00019452,2]
[335488991,1724268643858,-49036.56348528,0.00019989,2]
[335488992,1724268643925,-28502.34482412,0.00019989,2]
[335488996,1724268643935,-300.77881401,0.00019989,2]
[335488998,1724268643945,-500.0,0.00019989,2]